Cogmind - Beta 12 @@@ ROGUE MODE // 2023.08.24 @ 16:13:08 Player: veb_robotron Result: Self-destructed Performance ------------- Evolutions (3) 1500 Regions Visited (7) 1400 Robots Destroyed (35) 175 Value Destroyed (1135) 1135 Prototype IDs (11) 220 Alien Tech Used (0) 0 Bonus (300) 300 TOTAL SCORE: 4730 Bonus ------- Aligned with FarCom 300 Cogmind --------- Core Integrity 656/700 Matter 280/300 Energy 6/100 System Corruption 15% Temperature Cool (-100) Movement Hovering (48) Location -7/Factory Parts ------- > --- POWER (1) -------- (None) > --- PROPULSION (4) --- Gravmag System Gravmag System Gravmag System Gravmag System > --- UTILITY (6) ------ Cryofiber Web Medium Storage Unit Target Analyzer Target Analyzer Recoil Stabilizer Energy Filter > --- WEAPON (2) ------- Advanced Beam Rifle Advanced Beam Rifle > --- INVENTORY (10) --- Micro Nuclear Core Armored Huge Wheel Improved Cooling System High-capacity Battery (250) Improved Targeting Computer Layered Light Armor Plating Improved Shield Generator Lightning Gun Latent Energy Streamer Peak State ------------ > --- POWER ------------ Micro Nuclear Core > --- PROPULSION ------- Aerolev Unit Aerolev Unit Gravmag System Gravmag System > --- UTILITY ---------- Medium Storage Unit Target Analyzer Target Analyzer Target Analyzer Energy Filter Particle Charger > --- WEAPON ----------- Advanced Beam Rifle Latent Energy Streamer > --- INVENTORY -------- Gravmag System High-capacity Battery Target Analyzer Target Analyzer Target Analyzer Recoil Stabilizer Improved Shield Generator Precision Beam Rifle Advanced Beam Rifle Advanced EMP Blaster [Rating: 54] Favorites ----------- Power Improved Ion Engine Engine Improved Ion Engine Power Core Micro Nuclear Core Propulsion Aluminum Leg Treads Advanced Treads Leg Aluminum Leg Wheel Compact Wheel Hover Unit Aerolev Unit Flight Unit Improved VTOL Module Utility Small Storage Unit Device Improved Terrain Scanner Storage Small Storage Unit Processor Target Analyzer Weapon Latent Energy Streamer Energy Gun Small Laser Energy Cannon Latent Energy Streamer Ballistic Gun Assault Rifle Special Weapon Plasma Cutter Build | -11 -10 -10 -10 -9 -8 -8 -7 ------- Run | Jun Mat Min Exi Min Mat Sto Fac Slots Evolved 6 | . . . . . 4 . 2 Power . | . . . . . . . . Propulsion 2 | . . . . . 2 . . Utility 4 | . . . . . 2 . 2 Weapon . | . . . . . . . . Parts Attached 60 | 10 6 . 4 2 2 17 19 Power 6 | 1 2 . . . . 1 2 Engine 5 | 1 2 . . . . 1 1 Core 1 | . . . . . . . 1 Reactor . | . . . . . . . . Propulsion 16 | 4 3 . . . . 4 5 Treads 1 | . . . . . . . 1 Leg 5 | 2 3 . . . . . . Wheel 2 | 2 . . . . . . . Hover 7 | . . . . . . 3 4 Flight 1 | . . . . . . 1 . Utility 20 | 2 . . 2 2 1 4 9 Device 12 | 1 . . . 2 1 2 6 Storage 5 | 1 . . 2 . . 1 1 Processor 3 | . . . . . . 1 2 Hackware . | . . . . . . . . Protection . | . . . . . . . . Artifact . | . . . . . . . . Weapon 18 | 3 1 . 2 . 1 8 3 Energy Gun 10 | 1 1 . . . 1 4 3 Energy Cannon 5 | . . . 2 . . 3 . Ballistic Gun 2 | 2 . . . . . . . Ballistic Cannon . | . . . . . . . . Launcher . | . . . . . . . . Special Weapon 1 | . . . . . . 1 . Impact Weapon . | . . . . . . . . Slashing Weapon . | . . . . . . . . Piercing Weapon . | . . . . . . . . Special Melee Weapon . | . . . . . . . . Unidentified Prototypes 9 | . . . 1 1 . 7 . Parts Lost 6 | . 1 . . 1 . 1 3 Power . | . . . . . . . . Propulsion 2 | . . . . . . . 2 Utility 3 | . . . . 1 . 1 1 Weapon 1 | . 1 . . . . . . Highest Loss Streak 2 | . 1 . . 1 . 1 2 To Critical Strikes . | . . . . . . . . Average Slot Usage (%) 94 | . 100 100 99 99 72 91 99 Engine 9 | . 14 14 14 14 9 9 3 Leg 16 | . 28 28 28 28 18 11 . Hover 10 | . . . . . . 13 29 Flight 1 | . . . . . . 7 . Device 15 | . 14 14 14 13 18 18 12 Storage 11 | . 14 14 14 14 9 10 10 Processor 5 | . . . . . . 1 21 Energy Gun 10 | . 5 14 14 14 9 6 11 Energy Cannon 7 | . . . 3 14 9 11 3 Ballistic Gun 3 | . 22 14 10 . . . . Naked Turns . | . . . . . . . . Heaviest Build 37 | 15 16 16 24 25 28 33 37 Greatest Support 36 | 16 20 20 20 20 20 24 36 Greatest Overweight (x) 2 | 2 . . 1 1 1 1 1 Average Overweight (x) . | . . . . 1 1 1 . Largest Inventory Capacity 10 | 8 8 8 10 8 8 8 10 Average Capacity 8 | 7 8 8 8 8 8 8 9 Most Carried 10 | 7 8 8 8 8 8 8 10 Average Carried 7 | 4 7 8 7 7 7 7 9 Final Capacity 10 | 8 8 8 8 8 8 8 10 Final Carried 10 | 6 8 8 8 7 7 8 10 Class Distribution -------------------- 57% | Mutant 26% | Scavenger-Mutant 13% | Skirmisher Dominant Class ---------------- Mutant | -10/Materials Scavenger-Mutant | -10/Mines Scavenger-Mutant | -10/Exiles Skirmisher | -9/Mines Mutant | -8/Materials Mutant | -8/Storage Mutant | -7/Factory Resources | -11 -10 -10 -10 -9 -8 -8 -7 ----------- Run | Jun Mat Min Exi Min Mat Sto Fac Matter Collected 1000 | 183 244 . . 28 60 299 186 Remotely . | . . . . . . . . Salvage Created 1558 | 14 311 . . 28 120 781 304 Parts 80 | 3 18 . . 5 7 33 14 Haulers Intercepted 3 | . 1 . . . . 2 . Recyclers Shooed . | . . . . . . . . Parts Field Recycled . | . . . . . . . . Retrieved Matter . | . . . . . . . . Parts Self-Destructed . | . . . . . . . . Prevented . | . . . . . . . . Kills | -11 -10 -10 -10 -9 -8 -8 -7 ------- Run | Jun Mat Min Exi Min Mat Sto Fac Combat Hostiles Destroyed 25 | . 8 . . 2 2 8 5 Guns 12 | . 8 . . 2 . 1 1 Cannons 2 | . . . . . . 2 . AOE 8 | . . . . . 1 5 2 Classes Destroyed 10 | 1 3 . . . 1 3 2 Worker 3 | . . . . . . 1 2 Tunneler 1 | 1 . . . . . . . Hauler 3 | . 1 . . . . 2 . Recycler 2 | . . . . . . 2 . Mechanic 1 | . . . . . . 1 . Swarmer 6 | . 3 . . 2 . . 1 Grunt 12 | . 5 . . . . 5 2 Sentry 5 | . . . . . 2 3 . Hunter 1 | . . . . . . . 1 Programmer 1 | . . . . . . . 1 Best Kill Streak 10 | 1 6 . . 1 1 10 3 Combat Bots Only 5 | . 5 . . 1 1 5 3 Max Kills in Single Turn 5 | 1 2 . . 1 1 5 2 Gunslinging 1 | . 1 . . . . . . Exploded 2 | . . . . . 1 2 2 Melee . | . . . . . . . . Uniques/NPCs Destroyed . | . . . . . . . . Combat | -11 -10 -10 -10 -9 -8 -8 -7 -------- Run | Jun Mat Min Exi Min Mat Sto Fac Damage Taken 1576 | . 459 . . 102 34 686 295 Core 263 | . 108 . . 8 22 81 44 Absorbed by Shields 142 | . . . . 8 13 121 . Regen/Repaired (Parts) 38 | . . . . . . . 38 Core Remaining (%) 78 | 100 . . . 53 . 81 . Volleys Fired 96 | 2 20 . . 13 8 37 16 Largest 2 | 2 2 . . 2 2 1 2 Hottest 122 | 40 60 . . 100 116 68 122 Shots Fired 127 | 4 39 . . 13 10 38 23 Gun 95 | 4 39 . . 12 8 13 19 Cannon 31 | . . . . 1 2 24 4 Launcher . | . . . . . . . . Special 1 | . . . . . . 1 . Kinetic 39 | 4 35 . . . . . . Thermal 78 | . 4 . . 12 8 35 19 Explosive . | . . . . . . . . Electromagnetic 10 | . . . . 1 2 3 4 Robot Hit Streak 9 | 1 5 . . 5 3 9 4 Robot Miss Streak 5 | 1 2 . . 5 3 2 2 Penetration Max . | . . . . . . . . Secondary Targets 2 | . 2 . . . . . . Max Gunslinging Chain 1 | . 1 . . . . . . Shots Hit Robots 73 | 2 27 . . 6 6 22 10 Core Hits 47 | 1 15 . . 2 2 15 12 Critical Kills . | . . . . . . . . Critical Parts Destroyed . | . . . . . . . . Critical Strikes 6 | . . . . . 1 1 4 Burn 6 | . . . . . 1 1 4 Melee Attacks . | . . . . . . . . Impact . | . . . . . . . . Slashing . | . . . . . . . . Piercing . | . . . . . . . . Sneak Attacks . | . . . . . . . . Combat Hostiles . | . . . . . . . . Follow-up Attacks . | . . . . . . . . Damage Inflicted 3155 | 27 327 . . 67 265 1773 696 Guns 804 | 27 327 . . 67 57 114 212 Cannons 338 | . . . . . 11 320 7 Explosions 2013 | . . . . . 197 1339 477 Melee . | . . . . . . . . Ramming . | . . . . . . . . Kinetic 321 | 27 294 . . . . . . Thermal 791 | . 33 . . 67 57 422 212 Explosive . | . . . . . . . . Electromagnetic 2043 | . . . . . 208 1351 484 Impact . | . . . . . . . . Slashing . | . . . . . . . . Piercing . | . . . . . . . . Highest Corruption 17 | . 2 2 2 5 6 17 15 Average Corruption 6 | . 2 2 2 2 3 7 13 Corruption Purged . | . . . . . . . . Corruption Blocked . | . . . . . . . . Effects 68 | . . . 6 11 3 26 22 Message Errors 15 | . . . 3 1 2 4 5 Matter Fused 17 | . . . 1 5 . 8 3 Heat Flow Errors 8 | . . . 2 . . 3 3 Energy Discharges 6 | . . . . 1 . 3 2 Parts Rejected 1 | . . . . . . . 1 Parts Fused 1 | . . . . . . 1 . Data Loss (minor) 6 | . . . . 2 . . 4 Data Loss (major) 2 | . . . . 1 . . 1 Misfires 3 | . . . . . . 2 1 Alerts 7 | . . . . . 1 4 2 Weapon Failures 2 | . . . . 1 . 1 . Overload Shots . | . . . . . . . . Overflow Damage 51 | . . . . . . 32 19 Projectiles . | . . . . . . . . Explosions 51 | . . . . . . 32 19 Melee . | . . . . . . . . Knockbacks . | . . . . . . . . Impact . | . . . . . . . . Kinetic . | . . . . . . . . Secondary . | . . . . . . . . Self-Inflicted Damage 281 | . . . . . . 176 105 Shots 3 | . . . . . . 2 1 Rammed . | . . . . . . . . Targets Rammed . | . . . . . . . . Kicked . | . . . . . . . . Crushed . | . . . . . . . . Highest Temperature 299 | . 2 . 98 58 9 299 234 Average Temperature 65 | . 2 . 52 32 6 59 79 Received Heat Transfer 289 | . 108 . . . 25 147 9 Siege Activations . | . . . . . . . . Robots Corrupted 3 | . . . . . 1 . 2 Combat Hostiles 3 | . . . . . 1 . 2 Parts Fried 4 | . . . . . 1 1 2 Impact Corruptions . | . . . . . . . . Robots Melted . | . . . . . . . . Combat Hostiles . | . . . . . . . . Parts Melted 3 | . . . . 1 . . 2 Heat Transferred 1927 | . 75 . . 150 222 851 629 Parts Sabotaged . | . . . . . . . . Parts Stolen . | . . . . . . . . Parts Stripped . | . . . . . . . . Power Chain Reactions . | . . . . . . . . Missiles Intercepted . | . . . . . . . . Latent Energy Used 1777 | . . . . 193 400 565 619 LE Corruption 29 | . . . . 3 6 9 11 Alert | -11 -10 -10 -10 -9 -8 -8 -7 ------- Run | Jun Mat Min Exi Min Mat Sto Fac Peak Influence 395 | 5 220 85 . 54 146 395 297 Initial 179 | . 3 85 . . 20 53 179 Average 104 | 1 111 85 . 6 35 104 211 Maximum Alert Level 1 | . 1 . . . . 1 1 Low Security (%) 78 | 100 67 100 . 100 100 84 49 Level 1 21 | . 32 . . . . 15 50 Level 2 . | . . . . . . . . Level 3 . | . . . . . . . . Level 4 . | . . . . . . . . Level 5 . | . . . . . . . . High Security . | . . . . . . . . Max Security . | . . . . . . . . Squads Dispatched 6 | . 1 . . . . 1 4 Investigation 2 | . . . . . . . 2 Extermination 1 | . . . . . . . 1 Reinforcement 3 | . 1 . . . . 1 1 Assault . | . . . . . . . . Garrison . | . . . . . . . . Intercept . | . . . . . . . . Searches Triggered . | . . . . . . . . Construction Impeded . | . . . . . . . . Haulers Reinforced . | . . . . . . . . Active Scanning Responses . | . . . . . . . . Cargo Convoy Interrupts . | . . . . . . . . Stealth | -11 -10 -10 -10 -9 -8 -8 -7 --------- Run | Jun Mat Min Exi Min Mat Sto Fac Distress Signals 1 | . . . . . . . 1 Communications Jammed . | . . . . . . . . Distress Signals . | . . . . . . . . Times Spotted 40 | . 10 . . 3 5 10 12 Peak Tracking Total 5 | . 5 . . 2 1 4 4 Tactical Retreats 3 | . 1 . . . . . 2 Traps | -11 -10 -10 -10 -9 -8 -8 -7 ------- Run | Jun Mat Min Exi Min Mat Sto Fac Traps Triggered 10 | . 1 . . . . 4 5 Indirectly 3 | . . . . . . 3 . Trap Hack Attempts . | . . . . . . . . Triggered . | . . . . . . . . Disarmed . | . . . . . . . . Reprogrammed . | . . . . . . . . Reused . | . . . . . . . . Traps Extracted . | . . . . . . . . Installed . | . . . . . . . . Triggered . | . . . . . . . . Machines | -11 -10 -10 -10 -9 -8 -8 -7 ---------- Run | Jun Mat Min Exi Min Mat Sto Fac Machines Disabled 15 | . . . . . 5 5 5 Max in Single Turn 2 | . . . . . 2 2 2 Machines Repaired . | . . . . . . . . Machines Sabotaged . | . . . . . . . . Overloaded Fab Kills . | . . . . . . . . Hacking | -11 -10 -10 -10 -9 -8 -8 -7 --------- Run | Jun Mat Min Exi Min Mat Sto Fac Machines Accessed 15 | . . . 1 . 1 4 9 Terminals 8 | . . . . . 1 4 3 Fabricators . | . . . . . . . . Repair Stations 3 | . . . . . . . 3 Recycling Units 2 | . . . . . . . 2 Scanalyzers 1 | . . . . . . . 1 Garrison Access . | . . . . . . . . Total Hacks 49 | . . . 10 . 6 11 22 Successful 29 | . . . 10 . 4 3 12 Failed 20 | . . . . . 2 8 10 Catastrophic 4 | . . . . . . 2 2 Database Lockouts . | . . . . . . . . Manual 17 | . . . 1 . 5 6 5 Terminals 29 | . . . . . 6 11 12 Fabricators . | . . . . . . . . Repair Stations 5 | . . . . . . . 5 Recycling Units 4 | . . . . . . . 4 Scanalyzers 1 | . . . . . . . 1 Garrison Access . | . . . . . . . . Terminal Hacks 19 | . . . 10 . 1 3 5 Record 10 | . . . 10 . . . . Prototype ID Bank 1 | . . . . . . . 1 Open Door 1 | . . . . . . 1 . Branch Access Points 1 | . . . . . . . 1 Alert Level 4 | . . . . . . 1 3 Registered Components 1 | . . . . . 1 . . Zone Layout 1 | . . . . . . 1 . Fabricator Hacks . | . . . . . . . . Repair Station Hacks 2 | . . . . . . . 2 Scan Component 1 | . . . . . . . 1 Repair 1 | . . . . . . . 1 Recycling Unit Hacks 2 | . . . . . . . 2 Report Inventory 2 | . . . . . . . 2 Scanalyzer . | . . . . . . . . Garrison Access Hacks . | . . . . . . . . Unauthorized Hacks 6 | . . . . . 3 . 3 Terminals 5 | . . . . . 3 . 2 Track 2 | . . . . . 1 . 1 Assimilate 1 | . . . . . 1 . . Operators 2 | . . . . . 1 . 1 Fabricators . | . . . . . . . . Repair Stations . | . . . . . . . . Recycling Units 1 | . . . . . . . 1 Monitor 1 | . . . . . . . 1 Scanalyzers . | . . . . . . . . Garrison Access . | . . . . . . . . Data Cores Recovered . | . . . . . . . . Used . | . . . . . . . . Hacking Detections 14 | . . . . . 1 4 9 Full Trace Events 1 | . . . . . . . 1 Feedback Events . | . . . . . . . . Feedback Blocked . | . . . . . . . . Robot Schematics Acquired . | . . . . . . . . Robots Built . | . . . . . . . . Authchips . | . . . . . . . . Time . | . . . . . . . . Total Robot Build Rating . | . . . . . . . . Part Schematics Acquired . | . . . . . . . . Parts Built . | . . . . . . . . Authchips . | . . . . . . . . Time . | . . . . . . . . Total Part Build Rating . | . . . . . . . . Parts Repaired 1 | . . . . . . . 1 Time 22 | . . . . . . . 22 Parts Recycled . | . . . . . . . . Recycled Matter . | . . . . . . . . Retrieved Matter . | . . . . . . . . Retrieved Components . | . . . . . . . . Parts Scanalyzed . | . . . . . . . . Part Schematics Acquired . | . . . . . . . . Parts Damaged . | . . . . . . . . Bothacking | -11 -10 -10 -10 -9 -8 -8 -7 ------------ Run | Jun Mat Min Exi Min Mat Sto Fac Used RIF Installer . | . . . . . . . . Robots Hacked . | . . . . . . . . Non-combat . | . . . . . . . . Combat . | . . . . . . . . Robot Hacks Applied . | . . . . . . . . Relay Couplers Released . | . . . . . . . . Fabnet Peak Effective % . | . . . . . . . . Robots Rewired . | . . . . . . . . Allies Hacked . | . . . . . . . . Hacks Repelled . | . . . . . . . . Allies | -11 -10 -10 -10 -9 -8 -8 -7 -------- Run | Jun Mat Min Exi Min Mat Sto Fac Total Allies . | . . . . . . . . Largest Group . | . . . . . . . . Highest-Rated Group . | . . . . . . . . Highest-Rated Ally . | . . . . . . . . Total Orders . | . . . . . . . . Ally Attacks . | . . . . . . . . Total Damage . | . . . . . . . . Kills . | . . . . . . . . Allies Corrupted . | . . . . . . . . Allies Melted . | . . . . . . . . Intel | -11 -10 -10 -10 -9 -8 -8 -7 ------- Run | Jun Mat Min Exi Min Mat Sto Fac Robot Analysis Total . | . . . . . . . . Derelict Logs Recovered . | . . . . . . . . Drone Launches . | . . . . . . . . Drone Recoveries . | . . . . . . . . Exploration | -11 -10 -10 -10 -9 -8 -8 -7 ------------- Run | Jun Mat Min Exi Min Mat Sto Fac Turns Passed 3834 | 112 272 24 693 532 507 790 904 Spaces Moved 2869 | 66 140 21 508 263 254 422 1195 Core 8 | 8 . . . . . . . Treads . | . . . . . . . . Legs 1453 | 43 140 21 508 263 254 224 . Wheels 15 | 15 . . . . . . . Hover 1393 | . . . . . . 198 1195 Flight . | . . . . . . . . Fastest Speed 43 | 50 120 120 120 190 190 102 43 Average Speed 115 | 122 120 120 133 190 190 148 63 Slowest Speed 190 | 190 120 120 190 190 190 190 122 Overloaded Moves . | . . . . . . . . Propulsion Burnouts . | . . . . . . . . Robots Hopped . | . . . . . . . . Cave-ins Triggered . | . . . . . . . . Exploration Rate (%) 39 | 4 27 8 91 73 19 69 26 Regions Visited 7 Branch Regions 4 Pre-discovered Areas 2 | . . . 1 . . 1 . Known Exits Taken . | . . . . . . . . Unknown Exits Taken 7 | 1 1 1 1 1 1 1 . Scrap Searched . | . . . . . . . . Spaces Dug . | . . . . . . . . Terrain Destroyed 244 | . . . . 34 98 46 66 Melee . | . . . . . . . . Projectile . | . . . . . . . . AOE 244 | . . . . 34 98 46 66 Terrain Rammed . | . . . . . . . . Walls Destroyed . | . . . . . . . . Machines Disabled . | . . . . . . . . Actions | -11 -10 -10 -10 -9 -8 -8 -7 --------- Run | Jun Mat Min Exi Min Mat Sto Fac Total 3270 | 95 210 20 525 282 270 549 1319 Wait 90 | . 14 . . 4 . 31 41 Move 2862 | 65 139 20 507 262 253 421 1195 Hop . | . . . . . . . . Pick Up 92 | 15 17 . 7 . 4 24 25 Fast Attach 3 | . . . . 1 . . 2 Attach 25 | 9 1 . 1 1 1 5 7 Detach 1 | 1 . . . . . . . Swap 32 | 1 5 . 3 . 1 12 10 Drop 62 | 2 14 . 7 1 3 19 16 Fire 96 | 2 20 . . 13 8 37 16 Melee . | . . . . . . . . Ram . | . . . . . . . . Kick . | . . . . . . . . Crush . | . . . . . . . . Escape Stasis 7 | . . . . . . . 7 Rewire . | . . . . . . . . Trap . | . . . . . . . . Miscellaneous . | . . . . . . . . Route ------- -11/Junkyard -10/Materials -10/Mines -10/Exiles (discovered 2 exits: [*Min x2]) -9/Mines -8/Materials -8/Storage -7/Factory (discovered 2 exits: Low x2) History --------- Turn | Location | Event 15 | -11/Junkyard | Discovered new exit (range 16) 113 | -11/Junkyard | Entered Materials 349 | -10/Materials | Discovered new exit (range 9) 385 | -10/Materials | Entered Mines 388 | -10/Mines | Discovered new exit (range 16) 401 | -10/Mines | Met a Derelict bent on vengeance 405 | -10/Mines | Deemed a non-threat by the Exiles lab entrance 409 | -10/Mines | Entered Exiles 426 | -10/Exiles | Discovered new exit (range 15) 443 | -10/Exiles | Met 8R-AWN 460 | -10/Exiles | Met EX-HEX 548 | -10/Exiles | Met EX-DEC 569 | -10/Exiles | Visited The Gauntlet 579 | -10/Exiles | Build established: Scavenger-Mutant 722 | -10/Exiles | Learned location of Zion (-7) 758 | -10/Exiles | Discovered new exit (range 11) 854 | -10/Exiles | Met EX-BIN 871 | -10/Exiles | Aligned with FarCom system 872 | -10/Exiles | Given EX-Vault access code 899 | -10/Exiles | Opened EX-Vault 906 | -10/Exiles | Found Prototype Energy Cannon 907 | -10/Exiles | Identified Latent Energy Streamer 962 | -10/Exiles | Warned to stay clear of 0b10 Research branches 1102 | -10/Exiles | Left Exiles lab with Latent Energy Streamer 1102 | -10/Exiles | Entered Mines 1186 | -9/Mines | Found a damaged Exp. Sensor Array with a note attached 1190 | -9/Mines | Found Prototype Device 1190 | -9/Mines | Identified Exp. Sensor Array 1263 | -9/Mines | Received a Rocket Launcher from a helpful Derelict 1496 | -9/Mines | Build established: Skirmisher 1623 | -9/Mines | Discovered new exit (range 7) 1634 | -9/Mines | Entered Materials 1634 | -8/Materials | Evolved 4 slots: Propulsion x2, Utility x2 2104 | -8/Materials | Discovered new exit (range 15) 2128 | -8/Materials | Build established: Mutant 2141 | -8/Materials | Entered Storage 2478 | -8/Storage | Learned location of Armory (-4) 2807 | -8/Storage | System corruption reached 10% 2924 | -8/Storage | Discovered new exit (range 7) 2931 | -8/Storage | Entered Factory 2931 | -7/Factory | Evolved 2 slots: Utility x2 3282 | -7/Factory | System corruption reached 10% 3363 | -7/Factory | Identified exit to Lower Caves 3809 | -7/Factory | Repaired Mic. Nuclear Core 3835 | -7/Factory | Self-destructed Last Messages --------------- Scanning Mic. Nuclear Core... Ready to Repair: Mic. Nuclear Core Rating: 4 Time: 22 >>Repair Repairing Mic. Nuclear Core... ETC: 22 Acquired Melee Analysis Suite. Dropped Melee Analysis Suite. Acquired Lightning Gun. NFVH9DCROPE,P&0LU9ROC0&C>O7,TJIZ5CM| Repair station completes Mic. Nuclear Core repairs. R-06 Scavenger collects Melee Analysis Suite. Dropped Prc. Beam Rifle. Acquired Mic. Nuclear Core. R-06 Scavenger collects Prc. Beam Rifle. System corrupted: Imp. Deuterium Engine rejected. K-01 Serf cleans the Construction Platform. K-01 Serf cleans the DSF Access. Map ----- +----------------------------------------------------+ | """ # #??????????????????????# #???????????? | | """ # #??????????????????????# #???????????? | | """ # #??????????????????????# #???????????? | | # #??????????????????????# #???????????? | | ####### ###################????# #???????????? | | ??????# # """" #????# #???????????? | | ??????# + ""R" #????# #???????????? | | ??????# *# "" " #????# #???????????? | | ??????# # """ #????# #???????????? | | ??????# #*[ """"" ###### #???????????? | | ??????# #*[ """"" / +???????????? | | ??????# #[ ###### #???????????? | | ??????# ###################????# #???????????? | | ??????# #???######?????????????+ ???????????? | | ####### #??? #?????????????# ##??????????? | | # #??? #?????????????# #???????????? | | # #""" #?????????????# #???????????? | | # """" #""" #?????????????# #???????????? | | # """" # #?????????????? ????????????? | | /# """" |#""" #??????????????+????????????? | | # """" p#""" #???????????????????????????? | | # """" #""" ?????????????????????????????? | | # """" # ???????????????????????????????? | | ## """" ###+###########??????????????????????? | | #??????????????????????? | | ] """" a @#???????w??????????????? | | """" uu """???????????????? | | """" # """???????????????? | | """" u uk # """???????????????? | | """" # T#######+##+#? ??????????????? | | """" ####????????????? ?????????????? | | """" #????????????????? ????????????# | | #?????????????????########?????####### | | """" #??????????????????????????????# | | """" #??????????????????????????????# | | """" #????????????????????????????### | | """" #????????????????????????????#" | | """" #???#????????????????????????#" | | """" #????????????????????????????#" | | """" ########???###????#?????##+##### | | ??? o | | ###??????# ? #####/##### | | #?????? # """ !! ???????# # | | #??? + "T" !! ??????# """" # | | #?? ??# ! ??????# """" # | | "" # """ ?# ^ ?????# """" # | | Y" + """ ?# ??+ """" # | | "" # "S ## #??# # | | #??"" ## #??######## | | #???? + """ #???# | +----------------------------------------------------+ Best States ------------- Heat Dissipation 41 Energy Generation 16 Energy Capacity 530 Matter Stores 300 Matter Capacity 300 Sight Range 16 Robot Scan Range 20 Terrain Scan Range 16 Terrain Scan Density 10 Base Temperature (-) 100 Evasion (%) 56 Target Analysis 7 Recoil Reduction 4 Energy Filtering 30 Particle Charging 15 Item Schematics ----------------- None Robot Schematics ------------------ None Fabricated ------------ Nothing Alien Tech Used ----------------- None Achievements -------------- None Challenges ------------ None Game ------ Seed ReflectiveMicrowarpDevice Manual? 0 Play Time 01:09:38 Cumulative 29.4 hours Start 2023.08.19 @ 19:34:44 End 2023.08.24 @ 16:13:08 Sessions 4 Manual Loads 0 Difficulty Rogue Special Mode None Game No. 24 Rogue 24 Adventurer 0 Explorer 0 Win Type - Total 0 Types 0/0/0/0/0/0/0/0/0 Lore% 19 Gallery% 39 Achievement% 27 Wizard Run 0 Options --------- ASCII 0 Keyboard 0 Movement Numpad Keybinds 0 Fullscreen 1 Font 18/SmallcapsGlow Map View 76x50 Tactical HUD 0 Map Filters NONE Filters NONE Steam 1 RUN: 7f2fd801-27db-4cfa-98a8-3f5ec8171eb4